Cogmind - Beta 14 @@@ ROGUE MODE // 2025.03.18 @ 18:41:59 Player: GiggleBox Result: Self-destructed Performance ------------- Evolutions (1) 500 Regions Visited (2) 400 Robots Destroyed (32) 160 Value Destroyed (661) 661 Prototype IDs (0) 0 Alien Tech Used (0) 0 Bonus (0) 0 TOTAL SCORE: 1721 Bonus ------- None Cogmind --------- Core Integrity 197/400 Matter 300/300 Energy 100/100 System Corruption 0% Temperature Cool (0) Movement Core (450) Ox8 Location -9/Materials Parts ------- > --- POWER (1) -------- (None) > --- PROPULSION (2) --- (None) > --- UTILITY (4) ------ Large Storage Unit Structural Scanner > --- WEAPON (2) ------- Small Laser Maul > --- INVENTORY (15) --- Heat Sink Large Matter Pod (150) Power Shielding Hacking Suite Datajack Hammer Peak State ------------ > --- POWER ------------ Improved Ion Engine > --- PROPULSION ------- Light Treads Wheel > --- UTILITY ---------- Medium Storage Unit Structural Scanner Improved Terrain Scanner Seismic Detector > --- WEAPON ----------- Improved Light Cannon Maul > --- INVENTORY -------- Light Ion Engine Light Treads Wheel Heat Sink Large Matter Pod Power Shielding Hacking Suite Small Laser Datajack Hammer [Rating: 15] Favorites ----------- Power Ion Engine Engine Ion Engine Propulsion Wheel Treads Light Treads Leg Aluminum Leg Wheel Wheel Utility Seismic Detector Device Seismic Detector Storage Medium Storage Unit Weapon Light Assault Rifle Energy Gun Small Laser Ballistic Gun Light Assault Rifle Ballistic Cannon Improved Light Cannon Impact Weapon Hammer Build | -11 -10 -9 ------- Run | Yrd Mat Mat Slots Evolved 2 | . . 2 Power . | . . . Propulsion . | . . . Utility 2 | . . 2 Weapon . | . . . Parts Attached 36 | 7 15 14 Power 5 | 1 2 2 Engine 5 | 1 2 2 Core . | . . . Reactor . | . . . Propulsion 9 | 2 3 4 Treads 3 | . 1 2 Leg 1 | . . 1 Wheel 5 | 2 2 1 Hover . | . . . Flight . | . . . Utility 12 | 2 6 4 Device 8 | 1 5 2 Storage 4 | 1 1 2 Processor . | . . . Hackware . | . . . Protection . | . . . Artifact . | . . . Weapon 10 | 2 4 4 Energy Gun 2 | . . 2 Energy Cannon . | . . . Ballistic Gun 4 | 2 2 . Ballistic Cannon 1 | . . 1 Launcher . | . . . Special Weapon . | . . . Impact Weapon 3 | . 2 1 Slashing Weapon . | . . . Piercing Weapon . | . . . Special Melee Weapon . | . . . Unidentified Prototypes . | . . . Parts Lost 15 | . 4 11 Power 4 | . 1 3 Propulsion 7 | . 2 5 Utility 2 | . . 2 Weapon 2 | . 1 1 Highest Loss Streak 9 | . 2 9 To Critical Strikes . | . . . Average Slot Usage (%) 90 | . 98 79 Engine 10 | . 13 6 Treads 6 | . 4 10 Wheel 14 | . 22 3 Device 18 | . 13 25 Storage 12 | . 14 11 Energy Gun 2 | . . 4 Ballistic Gun 9 | . 15 1 Ballistic Cannon 2 | . . 4 Impact Weapon 11 | . 11 11 Peak Build Rating 15 | 7 9 15 Average Rating 8 | 5 7 10 On Entrance 5 | . 7 8 Naked Turns . | . . . Heaviest Build 37 | 14 19 37 Greatest Support 40 | 32 32 40 Greatest Overweight (x) 8 | 3 1 8 Average Overweight (x) . | . . 2 Largest Inventory Capacity 15 | 8 10 15 Average Capacity 10 | 7 9 12 Most Carried 10 | 6 10 10 Average Carried 7 | 3 8 7 Final Capacity 15 | 8 10 15 Final Carried 10 | 6 10 6 Class Distribution -------------------- 50% | Mutant 49% | Scavenger-Mutant Dominant Class ---------------- Mutant | -10/Materials Scavenger-Mutant | -9/Materials Resources | -11 -10 -9 ----------- Run | Yrd Mat Mat Matter Collected 850 | 261 396 193 Remotely . | . . . Salvage Created 1015 | 55 511 449 Parts 32 | 6 12 14 Haulers Intercepted 2 | . 2 . Recyclers Shooed . | . . . Parts Field Recycled . | . . . Retrieved Matter . | . . . Parts Self-Destructed . | . . . Prevented . | . . . Kills | -11 -10 -9 ------- Run | Yrd Mat Mat Combat Hostiles Destroyed 17 | . 8 9 Melee 6 | . 4 2 Cannons 4 | . . 4 Classes Destroyed 10 | 1 5 4 Worker 1 | . . 1 Builder 1 | . . 1 Tunneler 4 | 3 . 1 Hauler 2 | . 2 . Recycler 3 | . 1 2 Operator 2 | . 1 1 Watcher 2 | . 1 1 Swarmer 4 | . . 4 Grunt 10 | . 8 2 Sentry 3 | . . 3 Best Kill Streak 3 | 1 3 3 Combat Bots Only 3 | . 3 3 Max Kills in Single Turn 1 | 1 1 1 Gunslinging . | . . . Exploded . | . . . Melee 1 | . 1 1 Uniques/NPCs Destroyed . | . . . Combat | -11 -10 -9 -------- Run | Yrd Mat Mat Hostile Shots Fired 214 | . 92 122 Missed 61 | . 28 33 Damage Taken 1889 | . 736 1153 Core 397 | . 194 203 Absorbed by Shields . | . . . Regen/Repaired (Parts) 28 | . 28 . Core Remaining (%) 61 | 100 22 . Volleys Fired 61 | 15 22 24 Largest 2 | 2 2 1 Hottest 40 | 40 40 40 Shots Fired 88 | 30 34 24 Gun 70 | 30 34 6 Cannon 18 | . . 18 Launcher . | . . . Special . | . . . Kinetic 82 | 30 34 18 Thermal 6 | . . 6 Explosive . | . . . Electromagnetic . | . . . Robot Hit Streak 6 | 4 6 6 Robot Miss Streak 4 | 2 4 2 Penetration Max . | . . . Secondary Targets . | . . . Shots Hit Robots 113 | 17 56 40 Core Hits 22 | 5 10 7 Critical Kills 1 | . 1 . Critical Parts Destroyed 12 | . 7 5 Critical Strikes 14 | . 8 6 Smash 14 | . 8 6 Melee Attacks 94 | . 54 40 Impact 94 | . 54 40 Slashing . | . . . Piercing . | . . . Sneak Attacks 9 | . 3 6 Combat Hostiles . | . . . Follow-up Attacks . | . . . Damage Inflicted 2737 | 203 1228 1306 Guns 490 | 203 217 70 Cannons 206 | . . 206 Explosions . | . . . Melee 2041 | . 1011 1030 Ramming . | . . . Kinetic 626 | 203 217 206 Thermal 70 | . . 70 Explosive . | . . . Electromagnetic . | . . . Impact 2041 | . 1011 1030 Slashing . | . . . Piercing . | . . . Highest Corruption . | . . . Average Corruption . | . . . Corruption Purged . | . . . Corruption Blocked . | . . . Overload Shots . | . . . Overflow Damage 753 | . 277 476 Projectiles 1 | . . 1 Explosions . | . . . Melee 752 | . 277 475 Knockbacks 5 | . 1 4 Impact 4 | . 1 3 Kinetic 1 | . . 1 Secondary . | . . . Self-Inflicted Damage . | . . . Shots . | . . . Rammed . | . . . Targets Rammed . | . . . Kicked . | . . . Crushed . | . . . Highest Temperature 24 | . 24 7 Average Temperature 9 | . 12 4 Received Heat Transfer 747 | . 405 342 Siege Activations . | . . . Robots Corrupted 10 | . 5 5 Combat Hostiles 7 | . 4 3 Parts Fried 17 | . 9 8 Impact Corruptions 32 | . 12 20 Robots Melted . | . . . Combat Hostiles . | . . . Parts Melted . | . . . Heat Transferred 150 | . . 150 Parts Sabotaged . | . . . Parts Stolen . | . . . Parts Stripped . | . . . Power Chain Reactions . | . . . Alert | -11 -10 -9 ------- Run | Yrd Mat Mat Peak Influence 374 | 15 264 374 Initial 111 | . 9 111 Average 122 | 5 79 202 Maximum Alert Level 1 | . 1 1 Low Security (%) 74 | 100 89 48 Level 1 25 | . 10 51 Level 2 . | . . . Level 3 . | . . . Level 4 . | . . . Level 5 . | . . . High Security . | . . . Max Security . | . . . Squads Dispatched 4 | . 3 1 Investigation 1 | . 1 . Extermination . | . . . Reinforcement 3 | . 2 1 Assault . | . . . Garrison . | . . . Intercept . | . . . Searches Triggered . | . . . Construction Impeded . | . . . Haulers Reinforced . | . . . Active Scanning Responses . | . . . Cargo Convoy Interrupts . | . . . Stealth | -11 -10 -9 --------- Run | Yrd Mat Mat Distress Signals . | . . . Communications Jammed . | . . . Distress Signals . | . . . Times Spotted 34 | . 19 15 Peak Tracking Total 4 | . 3 4 Tactical Retreats 2 | . . 2 Traps | -11 -10 -9 ------- Run | Yrd Mat Mat Traps Triggered 1 | . 1 . Indirectly . | . . . Trap Hack Attempts . | . . . Triggered . | . . . Disarmed . | . . . Reprogrammed . | . . . Reused . | . . . Traps Extracted . | . . . Installed . | . . . Triggered . | . . . Machines | -11 -10 -9 ---------- Run | Yrd Mat Mat Machines Disabled . | . . . Max in Single Turn . | . . . Machines Repaired . | . . . Machines Dismantled . | . . . Machines Sabotaged . | . . . Overloaded Fab Kills . | . . . Hacking | -11 -10 -9 --------- Run | Yrd Mat Mat Machines Accessed 8 | . 7 1 Terminals 7 | . 6 1 Fabricators . | . . . Repair Stations 1 | . 1 . Recycling Units . | . . . Scanalyzers . | . . . Garrison Access . | . . . Total Hacks 25 | . 22 3 Successful 16 | . 15 1 Failed 9 | . 7 2 Catastrophic 3 | . 2 1 Database Lockouts . | . . . Manual 19 | . 16 3 Terminals 20 | . 17 3 Fabricators . | . . . Repair Stations 5 | . 5 . Recycling Units . | . . . Scanalyzers . | . . . Garrison Access . | . . . Terminal Hacks 2 | . 2 . Terminal Index 1 | . 1 . Locate Traps 1 | . 1 . Fabricator Hacks . | . . . Repair Station Hacks 4 | . 4 . Scan Component 2 | . 2 . Repair 2 | . 2 . Recycling Unit Hacks . | . . . Scanalyzer . | . . . Garrison Access Hacks . | . . . Unauthorized Hacks 10 | . 9 1 Terminals 10 | . 9 1 Botnet 5 | . 4 1 Skim 5 | . 5 . Fabricators . | . . . Repair Stations . | . . . Recycling Units . | . . . Scanalyzers . | . . . Garrison Access . | . . . Data Cores Recovered . | . . . Used . | . . . Hacking Detections 7 | . 6 1 Full Trace Events . | . . . Feedback Events . | . . . Feedback Blocked . | . . . Robot Schematics Acquired . | . . . Robots Built . | . . . Authchips . | . . . Time . | . . . Total Robot Build Rating . | . . . Part Schematics Acquired . | . . . Parts Built . | . . . Authchips . | . . . Time . | . . . Total Part Build Rating . | . . . Parts Repaired 2 | . 2 . Time 64 | . 64 . Parts Recycled . | . . . Recycled Matter . | . . . Retrieved Matter . | . . . Retrieved Components . | . . . Parts Scanalyzed . | . . . Part Schematics Acquired . | . . . Parts Damaged . | . . . Bothacking | -11 -10 -9 ------------ Run | Yrd Mat Mat Used RIF Installer . | . . . Robots Hacked . | . . . Non-combat . | . . . Combat . | . . . Robot Hacks Applied . | . . . Relay Couplers Released . | . . . Fabnet Peak Effective % . | . . . Robots Rewired . | . . . Allies Hacked . | . . . Hacks Repelled . | . . . Allies | -11 -10 -9 -------- Run | Yrd Mat Mat Total Allies . | . . . Largest Group . | . . . Highest-Rated Group . | . . . Highest-Rated Ally . | . . . Total Orders . | . . . Ally Attacks . | . . . Total Damage . | . . . Kills . | . . . Allies Corrupted . | . . . Allies Melted . | . . . Intel | -11 -10 -9 ------- Run | Yrd Mat Mat Robot Analysis Total . | . . . Derelict Logs Recovered . | . . . Drone Launches . | . . . Drone Recoveries . | . . . Exploration | -11 -10 -9 ------------- Run | Yrd Mat Mat Turns Passed 2197 | 173 1143 881 Spaces Moved 1263 | 109 789 365 Core 68 | 14 . 54 Treads 120 | . 2 118 Legs . | . . . Wheels 1075 | 95 787 193 Hover . | . . . Flight . | . . . Fastest Speed 50 | 50 80 95 Average Speed 119 | 105 93 178 Slowest Speed 450 | 200 160 450 Overloaded Moves . | . . . Propulsion Burnouts . | . . . Robots Hopped . | . . . Cave-ins Triggered . | . . . Exploration Rate (%) 42 | 6 92 29 Regions Visited 2 Branch Regions . Pre-discovered Areas . | . . . Known Exits Taken . | . . . Unknown Exits Taken 2 | 1 1 . Scrap Searched . | . . . Spaces Dug 6 | . 3 3 Terrain Destroyed 6 | . 3 3 Melee 6 | . 3 3 Projectile . | . . . AOE . | . . . Terrain Rammed . | . . . Walls Destroyed . | . . . Machines Disabled . | . . . Actions | -11 -10 -9 --------- Run | Yrd Mat Mat Total 1692 | 136 1063 493 Wait 206 | . 170 36 Move 1261 | 108 788 365 Hop . | . . . Pick Up 23 | 6 10 7 Fast Attach 11 | 7 4 . Attach 13 | . 4 9 Detach 1 | . . 1 Swap 12 | . 7 5 Drop 10 | . 4 6 Fire 61 | 15 22 24 Melee 94 | . 54 40 Ram . | . . . Kick . | . . . Crush . | . . . Escape Stasis . | . . . Rewire . | . . . Trap . | . . . Miscellaneous . | . . . Route ------- -11/Scrapyard -10/Materials (discovered 5 exits: *Mat x3 / [*Min] / [Sub]) -9/Materials (discovered 2 exits: [*Mat] / [*Sto]) History --------- Turn | Location | Event 20 | -11/Scrapyard | Discovered new exit (range 16) 174 | -11/Scrapyard | Entered Materials 235 | -10/Materials | Discovered new exit (range 7) 301 | -10/Materials | Build established: Mutant 372 | -10/Materials | Core integrity fell below 50% 473 | -10/Materials | Discovered new exit (range 15) 521 | -10/Materials | Repaired Seismic Detector 560 | -10/Materials | Repaired Imp. Terrain Scanner 614 | -10/Materials | Discovered new exit (range 15) 821 | -10/Materials | Build established: Scavenger-Mutant 971 | -10/Materials | Discovered new exit (range 10) 1174 | -10/Materials | Derelicts attacked the area 1177 | -10/Materials | Build established: Mutant 1247 | -10/Materials | Discovered new exit (range 15) 1317 | -10/Materials | Entered another Materials area 1317 | -9/Materials | Evolved 2 slots: Utility x2 1493 | -9/Materials | Discovered new exit (range 5) 1527 | -9/Materials | Build established: Scavenger-Mutant 1748 | -9/Materials | Discovered new exit (range 5) 1948 | -9/Materials | Lost 9 parts (2p4n2u1w) 2187 | -9/Materials | Build established: Mutant 2197 | -9/Materials | Core integrity fell below 50% 2198 | -9/Materials | Self-destructed Last Messages --------------- 02059_ R-06 Scavenger destroyed. 02062_ Sneak attack on T-07 Excavator. 02062_ Destroyed Wheel. 02062_ Destroyed Imp. Terrain Scanner. 02062_ T-07 Excavator system corrupted by crushing effect. 02063_ T-07 Excavator system terminally corrupted. 02063_ Mining Laser fried. 02063_ Wheel fried. 02063_ Seismic Detector fried. 02070_ Acquired Corrupted Wheel. 02071_ Dropped Corrupted Wheel. 02077_ R-06 Scavenger collects Corrupted Wheel. 02081_ R-06 Scavenger collects Sml. Storage Unit. 02085_ R-06 Scavenger collects Corrupted Sml. Storage Unit. 02170_ Sneak attack on O-16 Technician. 02170_ Destroyed Hover Unit. 02170_ O-16 Technician system corrupted by crushing effect. 02170_ Hover Unit fried. 02170_ Datajack fried. 02170_ O-16 Technician destroyed. Map ----- +----------------------------------------------------+ | | | | | | | | | | | | | | | | | | | | | | | | | | | | | | | | | | | ???#?#???#???????????#########???????????????????? | | ############????????? ???????????????????? | | ############?????????? ????????????????????? | | ## ##??????????? """ ?????????????????????? | | ## ##??????????? """ ?????????????????????? | | ## ##????????????"""??????????????????????? | | ## ########? ? ???????????????????? | | ## = ###############/######## ???????????? | | ## %# ####### @ ##########???????????? | | ## % # % b ????????? | | ## % + ! ????????? | | ## % %# t ????????? | | ######+#### ####### #############????????? | | % %#### ############ #############????????? | | #### ###???######g##???????????????????? | | #### # ??? ??????m##???????????????????? | | ##### % #### + ?????????? ##???????????????????? | | # % #### # ?????????? ##???????????????????? | | "" # #### ###????????? ##???????????????????? | | "" # #### # # ###???????????????????????????? | | "" # # #####???????????????????????????? | | + # ##???????????????????????????? | | "" # # ##???????????????????????????? | | "" # """ + ##???????????????????????????? | | "" # """ # #####???????????????????????????? | | # """ " # ###?????????????????????????????? | | ##### T ##????????????????????????????????? | | " ##????????????????????????????????? | | ##????????????????????????????????? | | ##????????#???????????????????????? | | ### ## ##????????????????????????????????? | | ### ## ##????????????????????????????????? | | ?##! !## ???????????????????????????????? | +----------------------------------------------------+ Best States ------------- Heat Dissipation 28 Energy Generation 12 Energy Capacity 265 Matter Stores 300 Matter Capacity 300 Sight Range 16 Terrain Scan Range 16 Terrain Scan Density 10 Evasion (%) 44 Recoil Reduction 2 Item Schematics ----------------- None Robot Schematics ------------------ None Fabricated ------------ Nothing Alien Tech Used ----------------- None Achievements -------------- None Challenges ------------ None Game ------ Seed SpreadHeartMembrane Manual? 0 Play Time 00:28:31 Cumulative 20.9 hours Start 2025.03.18 @ 18:15:12 End 2025.03.18 @ 18:41:59 Sessions 1 Manual Loads 0 Difficulty Rogue Special Mode None Game No. 30 Rogue 30 Adventurer 0 Explorer 0 Win Type - Total 0 Types 0/0/0/0/0/0/0/0/0 Lore% 5 Gallery% 23 Achievement% 20 Wizard Run 0 Options --------- Layout 0 ASCII 0 Keyboard 1 Movement Numpad Keybinds 0 Fullscreen 1 Font 24/Smallcaps Map View 76x50 Zoom Use 0% Tactical HUD 1 Map Filters NONE Filters NONE Steam 1 RUN: e9be5a98-874b-4f66-939e-f7751a661cae